bitfinex/quotes_ETHUSD_20250821
["timestamp","ask_amount","ask_price","bid_price","bid_amount"]
[1755775052618,0.318,4314.7,4314.6,0.2]
[1755775053119,0.7513,4314.7,4314.6,0.2]
[1755775054488,3.7513,4314.7,4314.6,0.2]
[1755775057693,3.7513,4314.7,4314.6,0.5137]
[1755775057694,0.005,4314.7,4314.6,0.5137]
[1755775057890,0.005,4314.7,4314.6,2.48151453]
[1755775058140,0.005,4314.7,4314.6,2.45833742]
[1755775058428,0.005,4314.7,4314.6,2.33068798]
[1755775058635,0.7383,4314.7,4314.6,0.2]
[1755775059193,0.3078,4314.7,4314.6,0.2]
[1755775059392,0.307,4314.7,4314.6,0.2]
[1755775059633,0.7375,4314.7,4314.6,0.2]
[1755775060000,0.307,4314.7,4314.6,0.2]
[1755775061712,0.0042,4314.7,4314.6,0.5137]
[1755775061913,0.307,4314.7,4314.6,0.2]
[1755775062632,0.0042,4314.7,4314.6,0.64145862]
[1755775062801,0.0042,4314.7,4314.6,0.66463573]
[1755775063635,0.0042,4314.7,4314.6,0.35093573]
[1755775063800,0.7375,4314.7,4314.6,0.2]
[1755775064006,0.307,4314.7,4314.6,0.2]
[1755775064241,0.0042,4314.7,4314.6,1.10521754]
[1755775064401,0.307,4314.7,4314.6,0.32781754]
[1755775064600,0.7375,4314.7,4314.6,0.32781754]
[1755775064909,7.7275,4314.7,4314.6,0.32781754]
[1755775065350,7.7275,4314.7,4314.6,0.2]
[1755775065546,7.7245,4314.7,4314.6,0.2]
[1755775066142,7.7245,4314.7,4313.8,17.19247983]
[1755775066143,4.7245,4314.7,4314.5,0.2]
[1755775066438,4.294,4314.7,4314.6,0.2]
[1755775066942,5.3845,4314.7,4313.7,0.17105512]
[1755775067144,5.3845,4314.7,4314.5,0.2]
[1755775067145,1.0905,4314.6,4314.5,0.2]
[1755775067306,1.3933,4314.6,4314.5,0.2]
[1755775069635,1.3933,4314.6,4314.4,0.2]
[1755775069846,4.0905,4314.5,4314.4,0.2]
[1755775070137,4.3933,4314.5,4314.4,0.2]
[1755775070616,1.3933,4314.5,4314.4,0.2]
[1755775071834,3.983,4314.5,4314.4,0.2]
[1755775072038,3.0,4314.5,4314.4,0.72869974]
[1755775072331,6.983,4314.5,4314.4,1.19239974]
[1755775073102,6.983,4314.5,4314.4,1.19299458]
[1755775073511,3.983,4314.5,4314.4,1.19299458]
[1755775073917,3.9832,4314.7,4314.4,1.19299458]
[1755775074111,3.9832,4314.7,4314.5,0.70247223]
[1755775074409,6.9832,4314.7,4314.6,0.99299458]
[1755775074603,6.9832,4314.7,4314.6,0.52929458]
[1755775075236,3.0,4314.6,4314.4,0.2]
[1755775075451,3.9832,4314.7,4314.5,0.3137]
[1755775076427,3.9832,4314.7,4314.6,0.4637]
[1755775076736,3.9832,4314.7,4314.6,0.7774]
[1755775079787,0.0012,4314.7,4314.6,0.7774]
[1755775079929,0.0012,4314.7,4314.6,0.5137]
[1755775080124,0.0012,4314.7,4314.6,0.9774]
[1755775083029,0.0004,4314.7,4314.6,0.5137]
[1755775083233,0.0004,4314.7,4314.6,0.9774]
[1755775085563,0.0004,4314.7,4314.6,0.3137]
[1755775085859,0.0004,4314.7,4314.5,0.001]
[1755775086474,0.0004,4314.7,4314.6,0.3137]
[1755775087282,0.0004,4314.7,4314.6,0.5137]
[1755775088590,0.0004,4314.7,4314.6,0.3137]
[1755775088991,0.0004,4314.7,4314.6,0.22317711]
[1755775089981,0.0004,4314.7,4314.6,0.02317711]
[1755775090187,0.7461,4314.7,4314.5,0.001]
[1755775090357,0.296,4314.7,4314.5,0.001]
[1755775090556,0.4501,4314.6,4314.5,0.001]
[1755775090762,0.7457,4314.6,4314.5,0.201]
[1755775090957,0.7457,4314.6,4314.5,0.001]
[1755775091163,0.7457,4314.6,4314.5,0.201]
[1755775093169,0.96280135,4314.6,4314.5,0.201]
[1755775094357,0.96278458,4314.6,4314.5,0.201]
[1755775094777,0.51268458,4314.6,4314.5,0.201]
[1755775094952,0.7457,4314.6,4314.5,0.201]
[1755775095277,0.96278458,4314.6,4314.5,0.201]
[1755775095482,0.51268458,4314.6,4314.5,0.201]
[1755775095884,1.62278458,4314.6,4314.5,0.001]
[1755775096085,34.7530443,4314.6,4314.5,0.001]
[1755775096958,4.7530443,4314.6,4314.5,0.201]
[1755775097149,34.62277161,4314.6,4314.5,0.201]
[1755775097354,38.73401457,4314.6,4314.5,0.201]
[1755775097889,38.73396853,4314.6,4314.5,0.201]
[1755775099574,38.73396853,4314.6,4314.5,0.001]
[1755775099984,38.73396853,4314.6,4314.5,0.201]
[1755775100351,34.30286853,4314.6,4314.5,0.001]
[1755775100556,45.62992742,4314.6,4314.5,0.201]
[1755775100790,46.28992742,4314.6,4314.5,0.201]
[1755775101290,46.28992742,4314.6,4314.5,0.001]
[1755775101488,51.86392742,4314.6,4314.5,0.001]
[1755775101793,52.36388542,4314.6,4314.5,0.001]
[1755775102102,52.36388542,4314.6,4313.6,0.001]
[1755775102103,3.66,4314.5,4313.6,0.001]
[1755775102425,3.9556,4313.7,4313.6,0.001]
[1755775102705,3.9556,4313.7,4312.9,0.001]
[1755775102706,40.85037622,4313.7,4312.9,0.001]
[1755775102871,8.21995889,4313.0,4312.9,0.001]
[1755775103068,45.84282742,4313.0,4312.9,0.001]
[1755775103256,46.16270172,4313.0,4312.9,0.001]
[1755775103458,46.16238134,4313.0,4312.9,0.001]
[1755775103950,4.17232245,4313.0,4312.9,0.001]
[1755775104180,7.639,4313.0,4312.9,0.001]
[1755775104382,7.9346,4313.0,4312.9,0.001]
[1755775104657,8.3847,4313.0,4312.9,0.001]
[1755775104992,11.21995889,4313.0,4312.9,0.001]
[1755775105198,45.94465889,4313.0,4312.9,0.001]
[1755775105367,46.16116045,4313.0,4312.9,0.001]
[1755775105575,46.29105611,4313.0,4312.9,0.001]
[1755775106597,46.29078362,4313.0,4312.9,0.001]
[1755775106899,46.29078362,4313.0,4311.8,0.02]
[1755775106900,3.6592,4312.9,4311.8,0.02]
[1755775107070,7.85555889,4311.9,4311.8,0.02]
[1755775107265,7.85555889,4311.9,4311.8,0.22]
[1755775107266,16.61655889,4311.9,4311.8,0.22]
[1755775107594,17.06665889,4311.9,4311.8,0.02]
[1755775108903,17.72665889,4311.9,4311.8,0.02]
[1755775110783,47.72665889,4311.9,4311.8,0.02]
[1755775114131,43.29855889,4311.9,4311.8,0.02]
[1755775114335,47.27255889,4311.9,4311.8,0.02]
[1755775114699,16.31695889,4311.9,4311.8,0.3074]
[1755775115220,16.31695889,4311.9,4311.8,0.976]
[1755775115602,16.31695889,4311.9,4311.8,0.5074]
[1755775116014,16.61255889,4311.9,4311.8,0.22]
[1755775116415,16.31695889,4311.9,4311.8,0.5074]
[1755775116815,16.31695889,4311.9,4311.8,0.22]
[1755775117021,16.31695889,4311.9,4311.8,0.5074]
[1755775117221,16.61255889,4311.9,4311.8,0.02]
[1755775117447,47.06265889,4311.9,4311.8,0.02]
[1755775118540,47.06265889,4311.9,4311.8,0.021]
[1755775120154,47.72265889,4311.9,4311.8,0.021]
[1755775120321,48.22562098,4311.9,4311.8,0.021]
[1755775121025,50.54478422,4311.9,4311.8,0.021]
[1755775122124,44.25162098,4311.9,4311.8,0.021]
[1755775122459,47.48337547,4311.9,4311.8,0.021]
[1755775122643,43.51437547,4311.9,4311.8,0.021]
[1755775122849,47.48337547,4311.9,4311.8,0.021]
[1755775123524,17.48337547,4311.9,4311.8,0.021]
[1755775123771,47.48337547,4311.9,4311.8,0.021]
[1755775124223,8.96681658,4311.9,4311.8,0.3254]
[1755775124421,16.52677547,4311.9,4311.8,0.7719]
[1755775124619,16.31095889,4311.9,4311.8,0.7719]
[1755775124929,16.31095889,4311.9,4311.8,0.3254]
[1755775125146,13.31095889,4311.9,4311.8,0.3254]
[1755775125462,13.30895889,4311.9,4311.8,0.3254]
[1755775125663,16.30895889,4311.9,4311.8,0.3254]
[1755775126276,16.30895889,4311.9,4311.8,0.7719]
[1755775127034,16.30895889,4311.9,4311.8,0.3254]
[1755775128253,16.52541452,4311.9,4311.8,0.3254]
[1755775128449,12.55941452,4311.9,4311.8,0.3254]
[1755775128655,16.52241452,4311.9,4311.8,0.3254]
[1755775129282,16.52241452,4311.9,4311.8,0.7719]
[1755775130090,16.52241452,4311.9,4311.8,0.3254]
[1755775131257,16.65263781,4311.9,4311.8,0.3254]
[1755775131698,16.65263781,4311.9,4311.8,0.7719]
[1755775132208,16.65263781,4311.9,4311.8,0.3254]
[1755775133486,16.65263781,4311.9,4311.8,0.021]
[1755775134415,17.15352566,4311.9,4311.8,0.021]
[1755775134578,12.97407003,4311.9,4311.8,0.021]
[1755775134782,17.14859693,4311.9,4311.8,0.021]
[1755775135546,17.14880454,4311.9,4311.8,0.021]
[1755775137821,17.14893864,4311.9,4311.8,0.021]
[1755775138064,17.46433864,4311.9,4311.8,0.021]
[1755775138212,21.15934739,4311.9,4311.8,0.021]
[1755775138412,3.66,4311.8,4311.1,0.2]
[1755775138720,10.55995889,4311.2,4310.9,0.001]
[1755775138937,9.0870919,4311.1,4311.0,0.2]
[1755775139147,9.58839852,4311.1,4310.9,0.001]
[1755775139307,0.84939852,4311.0,4310.9,0.201]
[1755775139709,0.84939852,4311.0,4310.9,0.5054]
[1755775140914,0.84939852,4311.0,4310.9,0.001]
[1755775141213,0.84939852,4311.0,4310.9,0.201]
[1755775141844,0.84939852,4311.0,4310.9,0.5054]
[1755775142953,0.50130662,4311.0,4310.9,0.201]
[1755775143116,0.8493594,4311.0,4310.9,0.5054]
[1755775143536,0.84933877,4311.0,4310.9,0.5054]
[1755775144151,0.84933877,4311.0,4310.9,0.9519]
[1755775144945,4.79812797,4311.0,4310.9,0.9519]
[1755775145144,3.34803215,4311.0,4310.9,0.9519]
[1755775145345,7.16651236,4311.0,4310.9,0.9519]
[1755775145845,7.16751236,4311.0,4310.9,0.9519]
[1755775146651,7.16651236,4311.0,4310.9,0.9519]
[1755775147030,6.949,4311.0,4310.9,0.9519]
[1755775147216,1.785,4311.1,4310.9,0.9519]
[1755775147420,3.949,4311.0,4310.9,0.5054]
[1755775147641,6.949,4311.0,4310.9,0.5054]
[1755775148045,6.949,4311.0,4310.9,0.9498]
[1755775149175,3.948,4311.0,4310.9,0.9498]
[1755775153598,1.785,4311.1,4310.9,0.9498]
[1755775153767,3.944,4311.0,4310.9,0.5054]
[1755775154393,3.9432,4311.0,4310.9,0.9498]
[1755775156759,3.9432,4311.0,4310.9,0.5054]
[1755775157612,1.787,4311.8,4310.9,0.5054]
[1755775157794,1.787,4311.8,4311.7,0.2]
[1755775157973,9.2566442,4311.8,4311.7,0.2]
[1755775158591,9.25662608,4311.8,4311.7,0.2]
[1755775161584,5.00442608,4311.8,4311.7,0.5164]
[1755775161912,8.733,4311.8,4311.7,0.9608]
[1755775162414,5.733,4311.8,4311.7,0.9608]
[1755775162614,1.787,4311.8,4311.7,0.9608]
[1755775162824,5.733,4311.8,4311.7,0.9608]
[1755775164008,0.002,4311.8,4311.7,0.9608]
[1755775175736,0.002,4311.8,4311.0,0.001]
[1755775175737,0.7693,4311.8,4311.0,0.001]
[1755775175914,7.55995889,4311.4,4311.0,0.001]
[1755775176088,0.3022,4311.1,4311.0,0.001]
[1755775176691,3.937,4311.3,4311.0,0.201]
[1755775177029,0.002,4311.8,4311.0,0.201]
[1755775177030,0.002,4311.8,4311.1,0.02319593]
[1755775177194,3.937,4311.7,4311.6,0.2]
[1755775177391,7.7043,4311.7,4311.6,0.2]
[1755775177798,7.7043,4311.7,4311.0,0.001]
[1755775177999,7.55995889,4311.4,4311.0,0.001]
[1755775178216,0.3158,4311.1,4311.0,0.201]
[1755775178736,0.3158,4311.1,4311.0,0.001]
[1755775179038,0.3158,4311.1,4311.0,0.201]
[1755775181032,0.3158,4311.1,4311.0,0.001]
[1755775181331,0.3158,4311.1,4311.0,0.201]
[1755775182729,0.7712,4311.1,4311.0,0.201]
[1755775182926,3.7712,4311.1,4311.0,0.201]
[1755775183125,11.33115889,4311.1,4311.0,0.201]
[1755775183338,3.0,4311.1,4311.0,0.201]
[1755775183635,7.2478,4311.1,4311.0,0.201]
[1755775185752,15.26315889,4311.1,4311.0,0.201]
[1755775187657,14.80775889,4311.1,4311.0,0.201]
[1755775187863,15.26315889,4311.1,4311.0,0.201]
[1755775188166,17.04715889,4311.1,4311.0,0.201]
[1755775193272,16.59175889,4311.1,4311.0,0.201]
[1755775193473,9.0258,4311.1,4311.0,0.201]
[1755775196790,39.4812,4311.1,4310.9,0.001]
[1755775196950,34.64884923,4311.0,4310.9,0.001]
[1755775197148,35.30796986,4311.0,4310.9,0.001]
[1755775197447,0.66,4310.9,4310.8,0.021]
[1755775197648,47.45492875,4310.9,4310.8,0.021]
[1755775197876,11.21995889,4310.6,4310.1,0.001]
[1755775198190,47.00052875,4310.6,4310.1,0.001]
[1755775198362,47.45592875,4310.6,4310.1,0.001]
[1755775198569,47.54898475,4310.6,4310.1,0.001]
[1755775199093,47.33189495,4310.6,4310.1,0.001]
[1755775199249,35.65196917,4310.5,4310.1,0.001]
[1755775199450,35.96776917,4310.5,4310.1,0.001]
[1755775199750,35.96767471,4310.5,4310.1,0.001]
[1755775199949,35.96767604,4310.5,4310.1,0.001]
[1755775200168,38.28759252,4310.5,4310.1,0.001]
[1755775200386,7.55995889,4310.2,4310.0,0.001]
[1755775200585,39.24359598,4310.1,4310.0,0.001]
[1755775200885,39.69899598,4310.1,4310.0,0.001]
[1755775201086,39.79205998,4310.1,4310.0,0.001]
[1755775201282,39.79207888,4310.1,4310.0,0.001]
[1755775201981,39.79127888,4310.1,4310.0,0.001]
[1755775203666,40.79745772,4310.1,4310.0,0.001]
[1755775203908,0.66,4309.8,4309.5,0.001]
[1755775204080,11.53575889,4309.6,4309.5,0.001]
[1755775204284,42.09858788,4309.6,4309.5,0.001]
[1755775204483,0.66,4309.4,4308.6,0.001]
[1755775204804,3.0,4308.8,4308.6,0.001]
[1755775205104,37.45845015,4308.7,4308.6,0.001]
[1755775205406,8.57375857,4308.7,4308.6,0.001]
[1755775206273,8.3572,4308.7,4308.6,0.001]
[1755775207873,38.70337884,4308.7,4308.6,0.001]
[1755775208395,38.91957857,4308.7,4308.6,0.001]
[1755775208794,8.91957857,4308.7,4308.6,0.001]
[1755775208999,38.91957857,4308.7,4308.6,0.001]
[1755775209302,38.70337884,4308.7,4308.6,0.001]
[1755775210009,3.66,4308.6,4308.2,0.001]
[1755775210211,8.51985889,4308.3,4308.2,0.001]
[1755775210417,45.44485889,4308.3,4308.2,0.001]
[1755775210712,45.87775889,4308.3,4308.2,0.001]
[1755775211726,45.87775889,4308.3,4307.7,0.001]
[1755775211727,0.66,4308.1,4307.7,0.001]
[1755775211912,11.51985889,4307.9,4307.7,0.001]
[1755775212107,41.73582131,4307.9,4307.7,0.001]
[1755775212430,42.51490015,4307.9,4307.7,0.001]
[1755775213279,3.66,4307.8,4307.7,0.001]
[1755775213503,33.9599,4307.8,4307.7,0.001]
[1755775213678,37.8859,4307.8,4307.7,0.001]
[1755775213886,33.9599,4307.8,4307.7,0.001]
[1755775214098,41.21995889,4307.8,4307.7,0.2909]
[1755775214413,45.14695889,4307.8,4307.7,0.2909]
[1755775214587,45.14695889,4307.8,4307.7,0.001]
[1755775214787,45.32315889,4307.8,4307.7,0.001]
[1755775215722,45.34695889,4307.8,4307.7,0.001]
[1755775216019,45.34695889,4307.8,4307.7,0.2909]
[1755775216187,41.41995889,4307.8,4307.7,0.2909]
[1755775216388,45.34595889,4307.8,4307.7,0.2909]
[1755775218233,14.68595889,4307.8,4307.7,0.2909]
[1755775218786,14.86215889,4307.8,4307.7,0.001]
[1755775218999,14.68595889,4307.8,4307.7,0.001]
[1755775219628,14.68595889,4307.8,4307.7,0.2909]
[1755775219926,14.68595889,4307.8,4307.7,0.001]
[1755775220311,14.68595889,4307.8,4307.7,0.746]
[1755775220626,14.68795889,4307.8,4307.7,0.746]
[1755775221014,14.68795889,4307.8,4307.7,0.2909]
[1755775221328,14.98785889,4307.8,4307.7,0.001]
[1755775221621,14.68795889,4307.8,4307.7,0.746]
[1755775221927,10.76195889,4307.8,4307.7,0.746]
[1755775222093,3.002,4307.8,4307.7,0.946]
[1755775222289,3.926,4307.8,4307.7,0.946]
[1755775222588,11.48595889,4307.8,4307.7,0.946]
[1755775222791,3.926,4307.8,4307.7,0.946]
[1755775223528,0.002,4307.8,4307.7,0.946]
[1755775225013,7.56195889,4307.8,4307.7,0.946]
[1755775225220,10.56195889,4307.8,4307.7,0.4909]
[1755775225395,10.56195889,4307.8,4307.7,0.201]
[1755775225596,10.86105889,4307.8,4307.7,0.201]
[1755775225920,10.56115889,4307.8,4307.7,0.201]
[1755775226117,10.56115889,4307.8,4307.7,0.4909]
[1755775226311,10.56115889,4307.8,4307.7,0.746]
[1755775226508,10.56115889,4307.8,4307.7,0.946]
[1755775233248,10.77851844,4307.8,4307.7,0.4909]
[1755775234334,11.07841844,4307.8,4307.7,0.201]
[1755775235264,10.77851844,4307.8,4307.7,0.201]
[1755775235556,10.77862725,4307.8,4307.7,0.4909]
[1755775236059,10.56115889,4307.8,4307.7,0.4909]
[1755775236233,10.77863733,4307.8,4307.7,0.4909]
[1755775237159,3.21867844,4307.8,4307.7,0.4909]
[1755775237326,7.13867844,4307.8,4307.7,0.946]
[1755775237861,7.43417844,4307.8,4307.7,0.201]
[1755775238164,16.09665084,4307.8,4307.7,0.201]
[1755775238468,8.53669195,4307.8,4307.7,0.001]
[1755775238971,8.53669195,4307.8,4307.7,0.201]
[1755775239460,8.53669195,4307.8,4307.7,0.001]
[1755775239667,8.53680199,4307.8,4307.7,0.201]
[1755775240432,8.53680199,4307.8,4307.7,0.001]
[1755775240637,8.53680199,4307.8,4307.7,0.201]
[1755775241973,35.53680199,4307.8,4307.7,0.201]
[1755775242138,38.53680199,4307.8,4307.7,0.201]
[1755775242769,38.06600199,4307.8,4307.7,0.201]
[1755775243565,38.53680199,4307.8,4307.7,0.201]
[1755775244367,38.53680199,4307.8,4307.7,0.001]
[1755775244668,38.97923661,4307.8,4307.7,0.001]
[1755775244873,39.19694206,4307.8,4307.7,0.001]
[1755775245165,39.29005806,4307.8,4307.7,0.001]
[1755775245367,39.29006251,4307.8,4307.7,0.001]
[1755775246840,38.81926251,4307.8,4307.7,0.001]
[1755775247538,39.29006251,4307.8,4307.7,0.001]
[1755775248591,38.81926251,4307.8,4307.7,0.001]
[1755775249468,38.81846251,4307.8,4307.7,0.001]
[1755775249870,33.94296251,4307.8,4307.7,0.3151]
[1755775250097,37.86296251,4307.8,4307.7,0.3151]
[1755775250267,38.15846251,4307.8,4307.7,0.001]
[1755775252881,45.7184214,4307.8,4307.7,0.001]
[1755775253492,46.1892214,4307.8,4307.7,0.001]
[1755775253990,46.05862798,4307.8,4307.7,0.001]
[1755775254197,38.62929259,4307.8,4307.7,0.001]
[1755775254624,46.18924746,4307.8,4307.7,0.001]
[1755775254822,46.18924214,4307.8,4307.7,0.001]
[1755775255210,45.71844214,4307.8,4307.7,0.001]
[1755775255534,46.84924214,4307.8,4307.7,0.001]
[1755775255889,16.84924214,4307.8,4307.7,0.001]
[1755775256809,46.84924214,4307.8,4307.7,0.001]
[1755775257404,46.7561632,4307.8,4307.7,0.001]
[1755775258505,46.75616261,4307.8,4307.7,0.001]
[1755775260896,0.66,4307.6,4307.2,0.001]
[1755775261100,11.51545889,4307.3,4307.2,0.001]
[1755775261409,3.66,4307.2,4306.8,0.021]
[1755775261731,11.51545889,4306.9,4306.8,0.021]
[1755775261930,46.28496261,4306.9,4306.8,0.021]
[1755775262101,3.0,4306.0,4305.8,0.02]
[1755775262298,3.0,4306.0,4305.9,0.5141]
[1755775262521,8.92360844,4306.0,4305.9,0.3141]
[1755775262731,8.92360844,4306.0,4305.9,0.9532]
[1755775263220,8.92362676,4306.0,4305.9,0.9532]
[1755775263532,8.92362676,4306.0,4305.9,0.5141]
[1755775263723,8.92362676,4306.0,4305.9,0.9532]
[1755775264246,8.92362676,4306.0,4305.9,0.3141]
[1755775264400,16.48358565,4306.0,4305.9,0.9532]
[1755775264600,16.48358565,4306.0,4305.9,0.7532]
[1755775264907,1.787,4306.9,4306.6,0.2]
[1755775265097,1.787,4306.9,4306.7,0.4391]
[1755775265098,3.92,4306.8,4306.7,0.4391]
[1755775265310,6.92,4306.8,4306.7,0.4391]
[1755775265519,6.925,4306.8,4306.7,0.7532]
[1755775265724,3.925,4306.8,4306.7,0.7532]
[1755775266658,6.925,4306.8,4306.7,0.7532]
[1755775269125,3.0,4306.7,4306.0,0.4338]
[1755775269324,10.55995889,4306.1,4306.0,0.6338]
[1755775269514,14.48395889,4306.1,4306.0,0.9319]
[1755775270214,14.48395889,4306.1,4306.0,0.7319]
[1755775270552,3.0,4306.0,4305.8,0.02]
[1755775270754,3.0,4306.0,4305.9,0.4981]
[1755775270916,6.924,4306.0,4305.9,0.2981]
[1755775271556,6.924,4306.0,4305.9,0.4981]
[1755775271765,6.924,4306.0,4305.9,0.2981]
[1755775271920,6.924,4306.0,4305.9,0.4981]
[1755775272517,6.924,4306.0,4305.8,0.02]
[1755775272720,6.9566,4306.0,4305.9,0.2]
[1755775273023,7.6154148,4306.0,4305.8,0.02]
[1755775273229,0.2167148,4305.9,4305.8,0.02]
[1755775273436,0.2534148,4305.9,4305.8,0.22]
[1755775273747,0.0367,4305.9,4305.8,0.22]
[1755775275651,7.55995889,4306.1,4305.8,0.5181]
[1755775275811,3.922,4306.0,4305.9,0.2]
[1755775276016,7.2266,4306.0,4305.9,0.2]
[1755775276331,7.2266,4306.0,4305.8,0.02]
[1755775276332,38.30338209,4306.0,4305.8,0.02]
[1755775276534,33.63128209,4305.9,4305.8,0.02]
[1755775276858,3.93588209,4305.9,4305.8,0.02]
[1755775277146,3.43502887,4305.9,4305.8,0.02]
[1755775277349,3.0,4305.9,4305.8,0.02]
[1755775277537,3.0,4305.9,4305.8,0.3181]
[1755775278643,3.0,4305.9,4305.8,0.02]
[1755775278944,3.3046,4305.9,4305.8,0.02]
[1755775280653,3.0,4305.9,4305.8,0.02]
[1755775281148,3.0,4305.9,4305.8,0.22]
[1755775281938,10.55995889,4305.9,4305.8,0.5181]
[1755775284564,10.55995889,4305.9,4305.8,0.22]
[1755775284868,10.75705889,4305.9,4305.8,0.22]
[1755775285170,11.20005889,4305.9,4305.8,0.22]
[1755775285335,11.41741907,4305.9,4305.8,0.22]
[1755775285786,11.10483537,4305.9,4305.8,0.22]
[1755775287255,11.10483537,4305.9,4305.8,0.221]
[1755775287459,11.10683537,4305.9,4305.8,0.221]
[1755775287680,11.6077501,4305.9,4305.8,0.221]
[1755775288196,10.90973537,4305.9,4305.8,0.5191]
[1755775288373,11.41072461,4305.9,4305.8,0.5191]
[1755775288894,14.70031907,4305.9,4305.8,0.9529]
[1755775289199,14.83082416,4305.9,4305.8,0.9529]
[1755775289406,14.70031907,4305.9,4305.8,0.9529]
[1755775290187,14.48295889,4305.9,4305.8,0.9529]
[1755775290420,14.7004657,4305.9,4305.8,0.9529]
[1755775291920,14.7004657,4305.9,4305.8,0.5191]
[1755775293617,10.77947257,4305.9,4305.8,0.5191]
[1755775294129,14.70047257,4305.9,4305.8,0.5191]
[1755775294485,14.70047257,4305.9,4305.5,0.4338]
[1755775294486,3.0,4305.8,4305.3,0.001]
[1755775294796,10.86455889,4305.4,4305.3,0.001]
[1755775295119,16.57255889,4305.4,4305.3,0.001]
[1755775296504,16.57255889,4305.4,4303.3,7.55995889]
[1755775296505,17.01805889,4305.4,4303.8,1.58]
[1755775296709,7.55995889,4304.7,4304.6,0.4338]
[1755775297026,11.48015889,4304.7,4304.6,0.7319]
[1755775297588,7.55915889,4304.7,4304.6,0.7319]
[1755775297949,3.921,4304.7,4304.6,0.7319]
[1755775300499,3.921,4304.7,4304.6,0.7478]
[1755775300894,11.48095889,4304.7,4304.6,0.7478]
[1755775301329,11.48095889,4304.7,4304.6,0.2981]
[1755775302891,11.48095889,4304.7,4303.7,0.001]
[1755775302892,11.78935889,4304.7,4304.0,0.4497]
[1755775303311,14.48095889,4304.7,4304.6,0.3116]
[1755775304439,3.0,4304.6,4304.3,0.4497]
[1755775304644,10.86835889,4304.4,4303.7,0.001]
[1755775304816,3.921,4304.3,4303.8,0.4497]
[1755775305241,3.921,4304.3,4303.7,0.001]
[1755775305242,3.921,4304.3,4303.9,0.4497]
[1755775305549,3.921,4304.3,4304.2,0.3116]
[1755775306024,3.921,4304.3,4304.2,0.7613]
[1755775306340,3.921,4304.3,4304.2,0.3116]
[1755775307335,3.921,4304.3,4304.2,0.7613]
[1755775308312,3.921,4304.3,4304.2,0.3116]
[1755775309157,3.921,4304.3,4304.2,0.7613]
[1755775310141,10.55995889,4304.4,4304.2,0.7613]
[1755775310338,3.921,4304.3,4304.2,0.7613]
[1755775313158,3.921,4304.3,4304.1,0.001]
[1755775313348,3.921,4304.3,4304.2,0.3116]
[1755775313550,3.921,4304.3,4304.2,0.7613]
[1755775313752,4.787,4304.6,4304.2,0.7613]
[1755775314049,3.0,4304.4,4304.3,0.4497]
[1755775314253,0.02,4304.8,4304.4,0.4497]
[1755775314559,3.941,4304.8,4304.7,0.3116]
[1755775314862,0.02,4304.8,4304.7,0.7613]
[1755775315228,0.02,4304.8,4304.7,0.3116]
[1755775315737,0.02,4304.8,4304.7,0.7613]
[1755775315949,3.941,4304.8,4304.7,0.7613]
[1755775316852,3.941,4304.8,4304.3,0.4497]
[1755775317162,4.2494,4304.8,4304.3,0.4497]
[1755775317462,7.55995889,4304.7,4304.1,0.001]
[1755775317663,3.921,4304.6,4304.1,0.001]
[1755775318167,3.921,4304.6,4304.2,0.4497]
[1755775318663,3.921,4304.6,4304.5,0.3116]
[1755775318850,3.02,4304.8,4304.5,0.3116]
[1755775319051,6.921,4304.7,4304.5,0.7613]
[1755775319850,6.921,4304.7,4304.5,0.3116]
[1755775320552,0.02,4304.8,4304.6,0.47293096]
[1755775320749,0.02,4304.8,4304.7,0.3116]
[1755775320750,0.0192,4304.8,4304.7,0.3116]
[1755775321249,0.0192,4304.8,4304.7,0.7613]
[1755775322194,1.93586403,4307.0,4304.7,9.93592289]
[1755775322475,0.002,4307.3,4304.7,9.93592289]
[1755775322476,0.002,4307.3,4306.3,8.21995889]
[1755775322783,0.002,4307.3,4306.3,10.70656049]
[1755775323026,0.002,4307.3,4306.3,11.15626049]
[1755775323186,0.002,4307.3,4306.3,2.9363016]
[1755775323388,11.52995889,4306.8,4305.8,0.4497]
[1755775323584,3.0,4306.7,4306.3,0.3116]
[1755775323941,3.0,4306.7,4306.3,0.7613]
[1755775324343,0.3104,4306.4,4305.9,0.4497]
[1755775324839,1.787,4307.2,4304.8,0.99359229]
[1755775324840,0.2439431,4308.2,4306.3,7.87155889]
[1755775325040,0.3673127,4308.8,4307.3,3.66]
[1755775325242,0.02,4308.8,4308.2,10.87155889]
[1755775325480,0.02,4308.8,4308.3,3.66]
[1755775325652,0.02,4308.8,4308.6,7.87155889]
[1755775325854,0.02,4308.8,4308.6,10.90503583]
[1755775326047,0.02,4308.8,4308.6,14.35473583]
[1755775326344,0.02,4308.8,4308.6,24.19428268]
[1755775329979,0.02,4308.8,4308.6,11.0051369]
[1755775330183,0.02,4308.8,4308.6,25.22528268]
[1755775330359,0.02,4308.8,4308.6,9.8914369]
[1755775330765,0.02,4308.8,4308.6,10.3239369]
[1755775331200,0.02,4308.8,4308.6,8.8839369]
[1755775331858,0.02,4308.8,4308.6,5.70857694]
[1755775336488,0.02,4308.8,4308.6,5.8791263]
[1755775338384,0.02,4308.8,4308.6,5.70857694]